bitfinex/quotes_BTCUSD_20250219
["timestamp","ask_amount","ask_price","bid_price","bid_amount"]
[1739996887416,0.0004262,96478.0,96477.0,0.009]
[1739996887961,0.01982917,96478.0,96477.0,0.009]
[1739996888351,0.03607606,96478.0,96477.0,0.009]
[1739996888520,0.03607606,96478.0,96477.0,0.164477]
[1739996889604,0.03607606,96478.0,96477.0,0.009]
[1739996890194,0.03607606,96478.0,96477.0,0.164477]
[1739996890393,0.01667309,96478.0,96477.0,0.164477]
[1739996891532,0.01667309,96478.0,96477.0,0.22441814]
[1739996891761,0.0004262,96478.0,96477.0,0.213777]
[1739996892575,0.0004262,96478.0,96477.0,0.204777]
[1739996892777,0.0004262,96478.0,96477.0,0.210777]
[1739996892939,0.0014262,96478.0,96477.0,0.217777]
[1739996894983,0.0014262,96478.0,96477.0,0.218629]
[1739996896552,0.0014262,96478.0,96477.0,0.013852]
[1739996897005,0.01767225,96478.0,96477.0,0.013852]
[1739996899294,0.1201759,96478.0,96477.0,0.013852]
[1739996899520,0.86604175,96478.0,96477.0,0.013852]
[1739996899978,1.01604175,96478.0,96477.0,0.013852]
[1739996900181,0.305495,96466.0,96465.0,0.00013]
[1739996900344,1.9528145,96466.0,96465.0,0.00013]
[1739996900550,2.0257195,96466.0,96465.0,0.00013]
[1739996900881,0.84409044,96466.0,96465.0,0.00013]
[1739996901031,0.67405459,96466.0,96465.0,0.00013]
[1739996901233,0.44365459,96466.0,96465.0,0.00013]
[1739996901880,0.4630813,96466.0,96465.0,0.00013]
[1739996902484,0.6185763,96466.0,96465.0,0.00013]
[1739996902692,0.6195763,96466.0,96465.0,0.00013]
[1739996902893,0.6205763,96466.0,96465.0,0.00013]
[1739996903262,0.6195763,96466.0,96465.0,0.00013]
[1739996903612,0.6185763,96466.0,96465.0,0.00013]
[1739996903807,0.44683036,96466.0,96465.0,0.00013]
[1739996904164,0.60332536,96466.0,96465.0,0.00013]
[1739996904369,0.44783036,96466.0,96465.0,0.00013]
[1739996904793,0.44783036,96466.0,96465.0,0.155626]
[1739996904994,0.44783036,96466.0,96465.0,0.00013]
[1739996905218,0.42740365,96466.0,96465.0,0.00013]
[1739996905420,0.58289865,96466.0,96465.0,0.00013]
[1739996905603,0.42940365,96466.0,96465.0,0.00013]
[1739996905982,0.42840365,96466.0,96465.0,0.00013]
[1739996906188,0.42840365,96466.0,96465.0,0.00213]
[1739996906434,0.42840365,96466.0,96465.0,0.00313]
[1739996907260,0.444653,96466.0,96465.0,0.00313]
[1739996907566,0.600148,96466.0,96465.0,0.00313]
[1739996908133,0.7842272,96466.0,96465.0,0.00313]
[1739996908445,0.79876805,96466.0,96465.0,0.003982]
[1739996908649,1.05381505,96466.0,96465.0,0.003982]
[1739996908849,1.05381505,96466.0,96465.0,0.002982]
[1739996909016,1.05281505,96466.0,96465.0,0.000982]
[1739996909210,1.05581505,96466.0,96465.0,0.000982]
[1739996909654,1.05481505,96466.0,96465.0,0.000982]
[1739996909899,1.22825663,96466.0,96465.0,0.000982]
[1739996910119,1.12577743,96466.0,96465.0,0.000982]
[1739996910460,1.12977743,96466.0,96465.0,0.000982]
[1739996911122,0.87473043,96466.0,96465.0,0.000982]
[1739996911257,3.47334243,96466.0,96465.0,0.000982]
[1739996911454,3.68644943,96466.0,96465.0,0.000982]
[1739996911657,3.72060208,96466.0,96465.0,0.000982]
[1739996911978,3.72460208,96466.0,96465.0,0.000982]
[1739996912153,3.71960208,96466.0,96465.0,0.000982]
[1739996912728,3.72060208,96466.0,96465.0,0.000982]
[1739996913080,3.72760208,96466.0,96465.0,0.000982]
[1739996913307,3.74198016,96466.0,96465.0,0.000982]
[1739996913878,2.74203916,96466.0,96465.0,0.000982]
[1739996914341,2.74903916,96466.0,96465.0,0.001982]
[1739996915468,2.78002614,96466.0,96465.0,0.001982]
[1739996917059,2.76002614,96466.0,96465.0,0.001982]
[1739996917564,2.72903916,96466.0,96465.0,0.001982]
[1739996918339,2.8195389,96466.0,96465.0,0.001982]
[1739996918650,2.74529266,96466.0,96465.0,0.001982]
[1739996919011,2.73757266,96466.0,96465.0,0.001982]
[1739996919234,2.58780566,96466.0,96465.0,0.001982]
[1739996919965,0.49747681,96466.0,96465.0,0.001982]
[1739996920167,0.82180181,96466.0,96465.0,0.001982]
[1739996920371,0.97180181,96466.0,96465.0,0.001982]
[1739996920568,0.98634266,96466.0,96465.0,0.001982]
[1739996920860,1.06724266,96466.0,96465.0,0.001982]
[1739996921084,0.97934266,96466.0,96465.0,0.001982]
[1739996921252,0.97234266,96466.0,96465.0,0.000982]
[1739996921451,0.98134266,96466.0,96465.0,0.000982]
[1739996921649,0.97434266,96466.0,96465.0,0.000982]
[1739996922273,0.97234266,96466.0,96465.0,0.000982]
[1739996922473,0.97334266,96466.0,96465.0,0.000982]
[1739996922783,0.97634266,96466.0,96465.0,0.000982]
[1739996922984,0.97534266,96466.0,96465.0,0.000982]
[1739996923153,0.97934266,96466.0,96465.0,0.000982]
[1739996923953,0.96308916,96466.0,96465.0,0.000982]
[1739996926800,0.97934165,96466.0,96465.0,0.000982]
[1739996928630,0.97534165,96466.0,96465.0,0.000982]
[1739996929182,0.97834165,96466.0,96465.0,0.000982]
[1739996929360,0.97534165,96466.0,96465.0,0.000982]
[1739996929691,0.6334758,96466.0,96465.0,0.000982]
[1739996929899,0.9739108,96466.0,96465.0,0.000982]
[1739996930417,0.46303422,96466.0,96465.0,0.000982]
[1739996930916,0.61852922,96466.0,96465.0,0.000982]
[1739996931530,0.29662922,96466.0,96465.0,0.000982]
[1739996932110,0.29362922,96466.0,96465.0,0.000982]
[1739996933972,0.12188173,96466.0,96465.0,0.000982]
[1739996934168,0.01937808,96466.0,96465.0,0.280178]
[1739996934371,0.01937808,96466.0,96465.0,0.124682]
[1739996934909,0.12188173,96466.0,96465.0,0.124682]
[1739996935242,0.12188173,96466.0,96465.0,0.049182]
[1739996935658,0.12288173,96466.0,96465.0,0.049182]
[1739996935965,0.12188173,96466.0,96465.0,0.049182]
[1739996937023,0.13813143,96466.0,96465.0,0.049182]
[1739996937332,0.29362643,96466.0,96465.0,0.000982]
[1739996938278,0.13813143,96466.0,96465.0,0.000982]
[1739996940099,0.13813143,96466.0,96465.0,0.156478]
[1739996940296,0.03562778,96466.0,96465.0,0.156478]
[1739996940570,0.03562778,96466.0,96465.0,0.284678]
[1739996942750,0.01320114,96493.0,96465.0,0.129182]
[1739996942971,0.01624672,96484.0,96476.0,0.35965661]
[1739996943872,0.01309543,96493.0,96476.0,0.35965661]
[1739996944218,0.155466,96485.0,96476.0,0.1211]
[1739996944438,0.207284,96486.0,96476.0,0.1211]
[1739996945133,0.25840675,96477.0,96476.0,0.0458]
[1739996945352,0.27778527,96477.0,96476.0,0.0458]
[1739996945536,0.12230827,96477.0,96476.0,0.0498]
[1739996945907,0.12230827,96477.0,96476.0,0.0458]
[1739996946137,0.12230827,96477.0,96476.0,0.0468]
[1739996946375,0.12230827,96477.0,96476.0,0.202279]
[1739996946717,0.01980462,96477.0,96476.0,0.202279]
[1739996946919,0.01980462,96477.0,96476.0,0.284679]
[1739996947628,0.01980462,96477.0,96476.0,0.433679]
[1739996948021,0.0004261,96477.0,96476.0,0.433679]
[1739996948432,3e-07,96478.0,96477.0,0.305477]
[1739996948667,0.01624554,96505.0,96493.0,0.155451]
[1739996948875,0.01624554,96505.0,96493.0,0.282751]
[1739996951369,0.001426,96494.0,96493.0,0.286751]
[1739996951566,0.002426,96494.0,96493.0,0.287751]
[1739996951900,1e-06,96499.0,96498.0,0.432643]
[1739996952231,1e-06,96499.0,96498.0,0.53514665]
[1739996952415,0.03095468,96525.0,96524.0,0.155401]
[1739996952641,0.03095468,96525.0,96524.0,0.280501]
[1739996953356,0.03108436,96525.0,96524.0,0.280501]
[1739996953556,0.00012968,96525.0,96524.0,0.430501]
[1739996954544,0.00112968,96525.0,96524.0,0.437501]
[1739996955100,0.00312968,96525.0,96524.0,0.430501]
[1739996955424,0.0004259,96540.0,96539.0,0.283077]
[1739996956029,0.0004259,96540.0,96539.0,0.205177]
[1739996956234,0.0004259,96540.0,96539.0,0.0498]
[1739996956460,0.0004259,96540.0,96539.0,0.155377]
[1739996956775,0.0014259,96540.0,96539.0,0.161377]
[1739996957199,0.0004259,96540.0,96539.0,0.155377]
[1739996957412,0.0004259,96540.0,96528.0,0.207192]
[1739996957413,0.10292955,96540.0,96524.0,0.083]
[1739996957585,0.10250365,96539.0,96524.0,0.083]
[1739996957939,0.10250365,96539.0,96527.0,0.207195]
[1739996958088,0.10254695,96539.0,96525.0,0.207198]
[1739996958414,0.10254695,96539.0,96532.0,0.155387]
[1739996958620,0.10254695,96539.0,96524.0,0.083]
[1739996958775,0.0192282,96538.0,96526.0,0.209197]
[1739996959137,0.0192282,96538.0,96526.0,0.0558]
[1739996959138,0.10250365,96537.0,96526.0,0.0558]
[1739996959307,0.207176,96536.0,96516.0,0.0487]
[1739996959486,0.20718,96534.0,96532.0,0.003]
[1739996959665,0.25789065,96533.0,96532.0,0.003]
[1739996959889,0.32078112,96533.0,96532.0,0.003]
[1739996960132,0.32078112,96533.0,96532.0,0.005]
[1739996960363,0.2724315,96533.0,96532.0,0.005]
[1739996960869,0.1170445,96533.0,96532.0,0.005]
[1739996961167,0.15249813,96533.0,96532.0,0.002]
[1739996961277,0.34552293,96533.0,96532.0,0.002]
[1739996961483,0.36006378,96533.0,96532.0,0.002]
[1739996961939,0.49297878,96533.0,96532.0,0.002]
[1739996962137,0.01454085,96531.0,96514.0,0.155416]
[1739996962459,0.155398,96526.0,96508.0,0.207236]
[1739996962657,0.10250365,96525.0,96509.0,0.207234]
[1739996962816,0.10250365,96525.0,96508.0,0.207236]
[1739996963228,0.10250365,96525.0,96506.0,0.0487]
[1739996963429,0.01623924,96527.0,96526.0,0.155398]
[1739996963894,0.04999448,96533.0,96517.0,0.12985453]
[1739996964029,0.10250365,96533.0,96532.0,0.155388]
[1739996964227,0.03091259,96545.0,96526.0,0.207196]
[1739996964471,0.08715521,96544.0,96533.0,0.155386]
[1739996964685,0.23715521,96544.0,96533.0,0.150386]
[1739996964846,0.23715521,96544.0,96535.0,0.155383]
[1739996965188,0.155373,96542.0,96526.0,4.33e-05]
[1739996965347,0.08723569,96541.0,96527.0,0.207195]
[1739996965544,0.08723569,96541.0,96528.0,0.207193]
[1739996965770,0.08723569,96541.0,96526.0,4.33e-05]
[1739996965975,0.24260969,96541.0,96531.0,0.155389]
[1739996966183,0.08723569,96541.0,96526.0,4.33e-05]
[1739996966394,0.08723569,96541.0,96528.0,0.155394]
[1739996966592,0.05007216,96540.0,96504.0,0.26939936]
[1739996966889,0.01623825,96538.0,96504.0,0.26939936]
[1739996967089,0.01623825,96538.0,96526.0,0.155397]
[1739996967090,0.08777231,96537.0,96526.0,0.155397]
[1739996967273,0.08777231,96537.0,96524.0,0.207201]
[1739996967493,0.08777231,96537.0,96520.0,0.12985453]
[1739996967692,0.08777231,96537.0,96510.0,0.12985453]
[1739996967935,0.207178,96535.0,96510.0,0.155424]
[1739996968133,0.1554,96525.0,96511.0,0.155421]
[1739996968336,0.08785281,96534.0,96508.0,0.0008504]
[1739996968508,0.08785281,96534.0,96510.0,0.12985453]
[1739996968735,0.404039,96533.0,96510.0,0.12985453]
[1739996968927,0.17163525,96528.0,96515.0,0.155416]
[1739996969262,0.17163525,96528.0,96520.0,0.001]
[1739996969263,0.08790647,96527.0,96520.0,0.001]
[1739996969474,0.155406,96521.0,96520.0,0.001]
[1739996969638,0.24336613,96521.0,96520.0,0.001]
[1739996970444,0.24336613,96521.0,96508.0,0.0008504]
[1739996970445,0.13803229,96521.0,96508.0,0.0008504]
[1739996970652,0.155425,96509.0,96508.0,0.0008504]
[1739996970971,0.08860426,96509.0,96508.0,0.0008504]
[1739996971171,0.10484629,96509.0,96508.0,0.0008504]
[1739996971373,0.15491845,96509.0,96508.0,0.0008504]
[1739996971950,0.15496172,96509.0,96508.0,0.0008504]
[1739996972341,0.06635746,96509.0,96508.0,0.1592774]
[1739996972545,0.06635746,96509.0,96508.0,0.1632774]
[1739996972749,0.06635746,96509.0,96508.0,0.0078504]
[1739996973149,0.05011543,96509.0,96508.0,0.0078504]
[1739996973572,0.13871969,96509.0,96508.0,0.0078504]
[1739996974408,0.13871969,96509.0,96508.0,0.0048504]
[1739996974576,0.13871969,96509.0,96508.0,0.0008504]
[1739996974749,0.13971969,96509.0,96508.0,0.0048504]
[1739996974939,0.13871969,96509.0,96508.0,0.0008504]
[1739996975152,0.13871969,96509.0,96508.0,0.0078504]
[1739996975756,0.05011543,96509.0,96508.0,0.1592774]
[1739996975988,0.05011543,96509.0,96508.0,0.1632774]
[1739996976371,0.06635766,96509.0,96508.0,0.1632774]
[1739996976771,0.06635766,96509.0,96508.0,0.2096774]
[1739996977611,0.06635766,96509.0,96508.0,0.1632774]
[1739996978520,0.06635766,96509.0,96508.0,0.0078504]
[1739996980848,0.37400949,96509.0,96508.0,0.0078504]
[1739996981051,0.31038692,96509.0,96508.0,0.0078504]
[1739996981266,0.15496192,96509.0,96508.0,0.0078504]
[1739996981617,0.15496192,96509.0,96508.0,0.1632774]
[1739996981820,0.15496192,96509.0,96508.0,0.0078504]
[1739996982536,0.06635766,96509.0,96508.0,0.1632774]
[1739996982758,0.06635766,96509.0,96508.0,0.0078504]
[1739996983852,0.05011543,96509.0,96508.0,0.0078504]
[1739996984372,0.05011543,96509.0,96508.0,0.1632774]
[1739996984574,0.13871969,96509.0,96508.0,0.0078504]
[1739996984728,0.29414469,96509.0,96508.0,0.0078504]
[1739996985395,0.13871969,96509.0,96508.0,0.0078504]
[1739996985892,0.29414469,96509.0,96508.0,0.0078504]
[1739996986069,3.36877801,96509.0,96508.0,0.0078504]
[1739996986272,2.65450401,96509.0,96508.0,0.0078504]
[1739996986485,0.305432,96505.0,96504.0,0.0008506]
[1739996986656,3.20284085,96505.0,96504.0,0.0008506]
[1739996986857,3.38320885,96505.0,96504.0,0.0008506]
[1739996987059,3.43328101,96505.0,96504.0,0.0008506]
[1739996987255,2.12155701,96505.0,96504.0,0.0008506]
[1739996987479,2.22406066,96505.0,96504.0,0.0008506]
[1739996987801,2.12155701,96505.0,96504.0,0.0008506]
[1739996988178,2.12555701,96505.0,96504.0,0.0008506]
[1739996988356,2.14680367,96505.0,96504.0,0.0008506]
[1739996988592,2.16680367,96505.0,96504.0,0.0008506]
[1739996988789,2.29758617,96505.0,96504.0,0.0008506]
[1739996988944,2.44548982,96505.0,96504.0,6e-07]
[1739996989310,0.86129682,96505.0,96504.0,6e-07]
[1739996990177,0.85729682,96505.0,96504.0,6e-07]
[1739996990352,0.09714085,96495.0,96465.0,0.000852]
[1739996990527,0.09013469,96487.0,96465.0,0.000852]
[1739996990736,0.16454085,96485.0,96465.0,0.000852]
[1739996990939,0.20729,96483.0,96465.0,0.000852]
[1739996991141,0.60919696,96482.0,96465.0,0.000852]
[1739996991323,0.674345,96481.0,96465.0,0.000852]
[1739996991518,0.207307,96476.0,96465.0,0.000852]
[1739996991732,0.15549,96470.0,96465.0,0.000852]
[1739996991938,0.09080621,96469.0,96465.0,0.000852]
[1739996992342,0.10705465,96469.0,96465.0,0.000852]
[1739996992658,0.10705465,96469.0,96465.0,0.00098168]
[1739996993495,0.10705465,96469.0,96465.0,0.00198168]
[1739996993796,0.01925852,96468.0,96465.0,0.00198168]
[1739996993994,0.09085993,96467.0,96465.0,0.00098168]
[1739996994169,0.09085993,96467.0,96465.0,0.00198168]
[1739996994615,0.09085993,96467.0,96466.0,0.155495]
[1739996994765,0.03081364,96470.0,96469.0,0.15549]
[1739996996048,0.0193322,96470.0,96469.0,0.15549]
[1739996997128,0.0193322,96470.0,96465.0,0.00098168]
[1739996997328,0.001,96467.0,96466.0,0.161495]
[1739996997980,0.0193322,96470.0,96469.0,0.15549]
[1739996998165,0.0125496,96478.0,96469.0,0.005]
[1739996998360,0.09048385,96478.0,96469.0,0.005]
[1739996998711,0.09048385,96478.0,96466.0,0.155495]
[1739996998841,0.01624785,96476.0,96475.0,0.15548]
[1739996999226,0.01624785,96476.0,96473.0,0.0454]
[1739996999427,0.03558987,96476.0,96475.0,0.15548]
[1739996999635,0.03558987,96476.0,96473.0,0.25271]
[1739996999966,0.03558987,96476.0,96475.0,0.15548]
[1739997000344,0.03558987,96476.0,96475.0,0.23628]
[1739997000543,0.01934202,96476.0,96475.0,0.23628]
[1739997001179,0.01934202,96476.0,96475.0,0.23828]
[1739997001682,0.01265639,96504.0,96494.0,0.155449]
[1739997001957,0.0891143,96503.0,96491.0,0.207272]
[1739997002272,0.0891143,96503.0,96475.0,0.24228]
[1739997002273,0.001,96476.0,96475.0,0.24228]
[1739997002565,0.001,96476.0,96475.0,0.34478365]
[1739997002947,0.001,96476.0,96475.0,0.34491333]
[1739997003378,0.03095496,96508.0,96475.0,0.18343333]
[1739997003590,0.001,96476.0,96475.0,0.23640968]
[1739997004489,0.02035314,96476.0,96475.0,0.23640968]
[1739997005357,0.02035314,96476.0,96475.0,0.24340968]
[1739997005988,0.001,96476.0,96475.0,0.24340968]
[1739997006178,0.001,96476.0,96475.0,0.24426048]
[1739997008387,0.001,96476.0,96475.0,0.00798048]
[1739997008557,0.02036986,96476.0,96475.0,0.00798048]
[1739997009652,0.17584886,96476.0,96475.0,0.00798048]
[1739997009858,0.17484886,96476.0,96475.0,0.00798048]
[1739997010457,0.17484886,96476.0,96475.0,0.00098048]
[1739997010758,0.29618024,96476.0,96475.0,0.00298048]
[1739997011158,0.31242818,96476.0,96475.0,0.00298048]
[1739997011491,0.31242818,96476.0,96475.0,0.00098048]
[1739997011693,0.31242818,96476.0,96475.0,0.00298048]
[1739997012054,0.15694918,96476.0,96475.0,0.00298048]
[1739997012255,0.06657276,96476.0,96475.0,0.15646048]
[1739997012464,0.05032482,96476.0,96475.0,0.15646048]
[1739997012863,0.05032482,96476.0,96475.0,0.20446048]
[1739997013307,0.01936986,96476.0,96475.0,0.20446048]
[1739997013951,0.01936986,96476.0,96475.0,0.20646048]
[1739997014359,0.01936986,96476.0,96475.0,0.20446048]
[1739997014640,0.02036986,96476.0,96475.0,0.21146048]
[1739997015071,0.01936986,96476.0,96475.0,0.00098048]
[1739997015263,0.01936986,96476.0,96475.0,0.15646048]
[1739997015420,0.01936986,96476.0,96475.0,0.16146048]
[1739997015896,0.05032482,96476.0,96475.0,0.16146048]
[1739997016528,0.01936986,96476.0,96475.0,0.16146048]
[1739997016983,0.01936986,96476.0,96475.0,0.15646048]
[1739997017215,0.01936986,96476.0,96475.0,0.16046048]
[1739997017739,0.01936986,96476.0,96475.0,0.15646048]
[1739997017975,0.03095496,96483.0,96475.0,0.15646048]
[1739997017976,8.2e-07,96483.0,96482.0,0.155469]
[1739997018207,2.2e-07,96484.0,96483.0,0.155467]
[1739997018438,2.2e-07,96484.0,96483.0,0.45517065]
[1739997018649,5.9e-07,96491.0,96490.0,0.02]
[1739997018870,5.9e-07,96491.0,96490.0,0.5662005]
[1739997019297,0.01624224,96530.0,96508.0,0.155427]
[1739997019511,0.01624224,96530.0,96508.0,0.231927]
[1739997020541,0.01624224,96530.0,96508.0,0.23205668]
[1739997020720,0.01624224,96530.0,96508.0,0.38176033]
[1739997020920,0.0014253,96509.0,96508.0,0.38176033]
[1739997021169,0.0014253,96509.0,96508.0,0.38876033]
[1739997021170,0.0024253,96509.0,96508.0,0.38876033]
[1739997023638,0.0024253,96509.0,96508.0,0.65815969]
[1739997024568,0.0014253,96509.0,96508.0,0.80815969]
[1739997024803,0.0004253,96509.0,96508.0,0.80115969]
[1739997025026,0.0004253,96509.0,96508.0,0.80815969]
[1739997025027,0.0024253,96509.0,96508.0,0.80815969]
[1739997025232,0.0014253,96509.0,96508.0,0.80815969]
[1739997025622,0.0024253,96509.0,96508.0,0.80815969]
[1739997026217,0.0024253,96509.0,96508.0,0.80115969]
[1739997026631,0.0024253,96509.0,96508.0,0.82815969]
[1739997026793,0.155361,96549.0,96539.0,0.155376]
[1739997026998,0.155362,96549.0,96540.0,0.155375]
[1739997027215,0.155363,96548.0,96540.0,0.155375]
[1739997027612,0.00454613,96547.0,96528.0,0.287793]
[1739997027889,0.15,96554.0,96528.0,0.287793]
[1739997027890,0.15,96554.0,96528.0,0.0806]
[1739997028149,0.08686013,96553.0,96528.0,0.0806]
[1739997028306,0.002,96549.0,96537.0,0.15538]
[1739997028548,0.155367,96546.0,96536.0,0.155381]
[1739997028741,0.08686013,96545.0,96522.0,0.0777]
[1739997028914,0.08686013,96545.0,96513.0,0.0777]
[1739997029114,0.155383,96536.0,96513.0,0.0777]
[1739997029311,0.00455017,96544.0,96526.0,0.155398]
[1739997029538,0.00453836,96535.0,96513.0,0.0777]
[1739997029716,0.155379,96538.0,96513.0,0.0777]
[1739997029911,0.00453836,96535.0,96529.0,0.155392]
[1739997030115,0.155385,96534.0,96526.0,0.207196]
[1739997030436,0.155382,96536.0,96528.0,0.155394]
[1739997030638,0.155382,96536.0,96520.0,0.12985453]
[1739997030639,0.207169,96540.0,96521.0,0.155406]
[1739997030841,0.16408205,96543.0,96529.0,0.155393]
[1739997031001,0.15538,96538.0,96529.0,0.155393]
[1739997031204,0.16408205,96543.0,96529.0,0.155393]
[1739997031407,0.02385876,96542.0,96529.0,0.155393]
[1739997031610,0.02385876,96542.0,96526.0,0.209196]
[1739997031611,0.155379,96538.0,96530.0,0.155391]
[1739997032027,0.10647204,96542.0,96526.0,0.001]
[1739997032232,0.155396,96527.0,96526.0,0.001]
[1739997032441,0.00454126,96527.0,96526.0,0.001]
[1739997032640,0.00454126,96527.0,96506.0,0.0824]
[1739997032845,0.155402,96524.0,96506.0,0.0824]
[1739997033185,0.01931683,96527.0,96497.0,0.34799936]
[1739997033389,0.08820167,96523.0,96497.0,0.0786]
[1739997033651,0.10444264,96523.0,96500.0,0.12985453]
[1739997033856,0.10444264,96523.0,96508.0,0.003]
[1739997034036,0.08820167,96523.0,96508.0,0.003]
[1739997034334,0.08820167,96523.0,96502.0,0.207248]
[1739997034535,0.01931683,96522.0,96514.0,0.155417]
[1739997034773,0.01931683,96522.0,96521.0,0.155406]
[1739997036384,0.01931683,96536.0,96510.0,0.12985453]
[1739997036600,0.01931683,96536.0,96520.0,0.12985453]
[1739997036803,0.01931683,96536.0,96533.0,0.207181]
[1739997036980,0.01931683,96536.0,96535.0,0.155384]
[1739997037482,0.15537,96544.0,96526.0,0.207197]
[1739997037626,0.15537,96544.0,96521.0,0.004]
[1739997037627,0.24252521,96544.0,96538.0,0.155378]
[1739997037826,0.09169587,96544.0,96531.0,0.207185]
[1739997038077,0.09169587,96544.0,96522.0,0.207206]
[1739997038271,0.09169587,96544.0,96520.0,0.17595453]
[1739997038481,0.001,96536.0,96535.0,0.155384]
[1739997038628,0.001,96536.0,96528.0,0.207191]
[1739997038825,0.001,96536.0,96535.0,0.155384]
[1739997039453,0.001,96536.0,96533.0,0.207181]
[1739997039652,0.01931683,96543.0,96520.0,0.0461]
[1739997039856,0.01931683,96543.0,96519.0,0.207211]
[1739997039857,0.001,96536.0,96518.0,0.207215]
[1739997040034,0.155387,96533.0,96511.0,0.22520365]
[1739997040263,0.01931683,96535.0,96511.0,0.22533333]
[1739997040463,0.01931683,96535.0,96533.0,0.155386]
[1739997040659,0.01931683,96535.0,96534.0,0.155385]
[1739997041369,0.01931683,96535.0,96532.0,0.207184]
[1739997041576,0.02031683,96535.0,96534.0,0.155385]
[1739997042772,0.01931683,96535.0,96534.0,0.155385]
[1739997043147,0.02031683,96535.0,96534.0,0.155385]
[1739997043550,0.01931683,96535.0,96534.0,0.155385]
[1739997043793,0.0004254,96548.0,96531.0,0.0766]
[1739997043966,0.0004254,96548.0,96545.0,0.155367]
[1739997044151,0.0045806,96547.0,96534.0,0.006]
[1739997044347,0.0004254,96548.0,96541.0,0.155372]
[1739997044553,0.0045806,96547.0,96542.0,0.155372]
[1739997044867,0.0004254,96548.0,96542.0,0.155372]
[1739997045279,0.0045806,96547.0,96534.0,0.002]
[1739997045486,0.0045806,96547.0,96542.0,0.155371]
[1739997045919,0.0045806,96547.0,96542.0,0.002]
[1739997046247,0.0045806,96547.0,96543.0,0.15537]
[1739997046662,0.0045806,96547.0,96542.0,0.002]
[1739997046974,0.0045806,96547.0,96546.0,0.155366]
[1739997047112,0.0004254,96548.0,96547.0,0.155364]
[1739997047326,0.0004254,96548.0,96547.0,0.238164]
[1739997048769,0.0004254,96548.0,96547.0,0.243164]
[1739997049109,0.0014254,96548.0,96547.0,0.238164]
[1739997049880,0.0014254,96548.0,96547.0,0.245164]
[1739997050391,0.0014254,96548.0,96547.0,0.238164]
[1739997050836,0.0014254,96548.0,96547.0,0.245164]
[1739997050998,0.0024254,96548.0,96547.0,0.252164]
[1739997051214,0.0004254,96548.0,96547.0,0.245164]
[1739997051587,0.0014254,96548.0,96547.0,0.252164]
[1739997051923,0.0014254,96548.0,96547.0,0.245164]
[1739997052138,0.0024254,96548.0,96547.0,0.35466765]
[1739997052309,0.0014254,96548.0,96547.0,0.34766765]
[1739997052743,0.0024254,96548.0,96547.0,0.34766765]
[1739997052959,0.0024254,96548.0,96547.0,0.35466765]
[1739997053373,0.0024254,96548.0,96547.0,0.52156336]
[1739997053586,0.0024254,96548.0,96547.0,0.27639936]
[1739997053840,0.0024254,96548.0,96547.0,0.43876336]
[1739997054175,0.0014254,96548.0,96547.0,0.43176336]
[1739997054410,0.0004254,96548.0,96547.0,0.43176336]
[1739997054661,0.0014254,96548.0,96547.0,0.43876336]
[1739997054858,0.0004254,96548.0,96547.0,0.43176336]
[1739997055065,0.0004254,96548.0,96547.0,0.27639936]
[1739997055263,0.0004254,96548.0,96547.0,0.43676336]
[1739997055721,0.0004254,96548.0,96547.0,0.42976336]
[1739997055903,0.0004254,96548.0,96547.0,0.27439936]
[1739997056151,0.0004254,96548.0,96547.0,0.43576336]
[1739997056327,0.0004254,96548.0,96547.0,0.28039936]
[1739997056826,0.32119985,96548.0,96547.0,0.011]
[1739997057377,1.46024485,96548.0,96547.0,0.011]
[1739997057579,0.28811685,96548.0,96535.0,0.0008504]
[1739997057779,0.08683332,96547.0,96541.0,0.155372]
[1739997057980,0.08683332,96547.0,96535.0,0.0008504]
[1739997058327,0.0954037,96548.0,96547.0,0.155364]
[1739997058328,0.01666173,96548.0,96547.0,0.155364]
[1739997058520,0.01866173,96548.0,96547.0,0.155364]
[1739997059291,0.01666173,96548.0,96547.0,0.155364]
[1739997059690,0.01666173,96548.0,96547.0,0.162364]
[1739997060093,0.01666173,96548.0,96547.0,0.155364]
[1739997060734,0.0004254,96548.0,96547.0,0.165364]
[1739997061279,0.0004254,96548.0,96547.0,0.161364]
[1739997061514,0.0004254,96548.0,96547.0,0.26886765]
[1739997061922,0.0004254,96548.0,96547.0,0.25786765]
[1739997062140,0.0014254,96548.0,96547.0,0.26386765]
[1739997062343,0.0014254,96548.0,96547.0,0.26986765]
[1739997062470,0.0004254,96548.0,96547.0,0.26386765]
[1739997062677,0.0004254,96548.0,96547.0,0.25786765]
[1739997063083,0.0004254,96548.0,96547.0,0.26486765]
[1739997063741,0.0014254,96548.0,96547.0,0.27086765]
[1739997063915,0.0004254,96548.0,96547.0,0.26486765]
[1739997064466,0.0014254,96548.0,96547.0,0.27086765]
[1739997065232,0.0014254,96548.0,96547.0,0.54026701]
[1739997067917,0.0014254,96548.0,96547.0,0.77196701]
[1739997068089,0.0004259,96563.0,96557.0,0.155348]
[1739997068384,0.00055502,96558.0,96557.0,0.52725101]
[1739997069208,0.00055502,96558.0,96557.0,0.53425101]
[1739997069364,0.00155502,96558.0,96557.0,0.54025101]
[1739997069565,0.00155502,96558.0,96557.0,0.53325101]
[1739997069998,0.00155502,96558.0,96557.0,0.54025101]
[1739997070393,0.00155502,96558.0,96557.0,0.43774736]
[1739997070594,0.00055502,96558.0,96557.0,0.43174736]
[1739997070963,0.00055502,96558.0,96557.0,0.43874736]
[1739997071155,0.00055502,96558.0,96557.0,0.42474736]
[1739997071588,0.00055502,96558.0,96557.0,0.43874736]
[1739997071989,0.00055502,96558.0,96557.0,0.43174736]
[1739997072352,0.00055502,96558.0,96557.0,0.43874736]
[1739997072760,0.00055502,96558.0,96557.0,0.54125101]
[1739997075152,2e-08,96558.0,96557.0,0.81905101]
[1739997077534,2e-08,96558.0,96557.0,0.71654736]
[1739997077651,2e-08,96558.0,96557.0,0.58874736]
[1739997078008,2e-08,96558.0,96557.0,0.69125101]
[1739997078990,2e-08,96558.0,96557.0,0.54125101]
[1739997079510,2e-08,96558.0,96557.0,0.54210121]
[1739997079706,0.00042512,96558.0,96557.0,0.43959756]
[1739997081452,0.00042512,96558.0,96557.0,0.28424956]
[1739997081655,0.00042512,96558.0,96557.0,0.43959756]
[1739997082536,0.00042512,96558.0,96557.0,0.43259756]
[1739997082934,0.00042512,96558.0,96557.0,0.43959756]
[1739997083539,0.00042512,96558.0,96557.0,4.00909756]
[1739997083738,0.00142512,96558.0,96557.0,4.01609756]